[Event "LAT-chW 2020"]
[Site "Riga"]
[Date "2020.08.29"]
[Round "7.1"]
[White "Maklakova, Nellija"]
[Black "Rogule, Laura"]
[Result "0-1"]
[ECO "A26"]
[WhiteElo "1833"]
[BlackElo "2297"]
[Annotator "ChessBase"]
[PlyCount "120"]
[EventDate "2020.08.24"]
[EventType "swiss"]
[EventCountry "LAT"]
[SourceTitle "playchess.com"]
[Source "ChessBase"]
[SourceQuality "1"]
[TimeControl "5400+30"]

1. c4 {[%emt 0:00:00]} e5 {[%emt 0:00:00]} 2. Nc3 {[%emt 0:00:06]} Nc6 {[%emt 0:00:10]} 3. g3 {[%emt 0:00:59]} g6 {[%emt 0:00:38]} 4. Bg2 {[%emt 0:01:00]} Bg7 {[%emt 0:00:08]} 5. d3 {[%emt 0:00:43]} d6 {[%emt 0:02:02]} 6. Nf3 {[%emt 0:01:03]} Nge7 {[%emt 0:30:57]} 7. Bd2 {[%emt 0:07:07]} h6 {[%emt 0:03:23]} 8. Rb1 {[%emt 0:02:20]} Be6 {[%emt 0:02:43]} 9. b4 {[%emt 0:01:24]} Qd7 {[%emt 0:03:02]} 10. h4 {[%emt 0:01:01]} f5 {[%emt 0:10:24]} 11. b5 {[%emt 0:10:25]} Nd8 {[%emt 0:01:00]} 12. e4 {[%emt 0:01:17]} O-O {[%emt 0:08:47]} 13. Qc1 {[%emt 0:02:53]} f4 {[%emt 0:07:53]} 14. Nd5 {[%emt 0:08:44]} Kh7 {[%emt 0:12:31]} 15. a4 {[%emt 0:06:06]} c6 {[%emt 0:00:37]} 16. bxc6 {[%emt 0:01:19]} bxc6 {[%emt 0:01:22]} 17. Nxe7 {[%emt 0:00:31]} Qxe7 {[%emt 0:00:03]} 18. a5 {[%emt 0:01:26]} Rf7 {[%emt 0:02:30]} 19. a6 {[%emt 0:06:13]} Bc8 {[%emt 0:01:19]} 20. Qa3 {[%emt 0:01:20]} Ne6 {[%emt 0:00:21]} 21. c5 {[%emt 0:09:11]} dxc5 {[%emt 0:02:45]} 22. O-O {[%emt 0:02:06]} Nc7 {[%emt 0:01:27]} 23. Rb7 {[%emt 0:03:01]} Bxb7 {[%emt 0:00:30]} 24. axb7 {[%emt 0:00:07]} Raf8 {[%emt 0:01:01]} 25. Qxa7 {[%emt 0:01:41]} Nb5 {[%emt 0:00:29]} 26. Qb6 {[%emt 0:00:35]} Qxb7 {[%emt 0:00:19]} 27. Qxc5 {[%emt 0:00:06]} fxg3 {[%emt 0:02:24]} 28. fxg3 {[%emt 0:00:16]} Qa7 {[%emt 0:04:07]} 29. Bb4 {[%emt 0:03:04]} Rd8 {[%emt 0:00:39]} 30. Qxa7 {[%emt 0:01:28]} Rxa7 {[%emt 0:00:06]} 31. Ne1 {[%emt 0:00:48]} Kg8 {[%emt 0:00:45]} 32. Bh3 {[%emt 0:00:40]} Bf8 {[%emt 0:00:36]} 33. Be6+ {[%emt 0:00:55]} Kg7 {[%emt 0:00:04]} 34. Bd2 {[%emt 0:00:41]} Bc5+ {[%emt 0:00:20]} 35. Kh1 {[%emt 0:01:15]} Rf8 {[%emt 0:01:03]} 36. Rxf8 {[%emt 0:00:45]} Bxf8 {[%emt 0:00:04]} 37. Nf3 {[%emt 0:01:20]} Bd6 {[%emt 0:00:17]} 38. Kg2 {[%emt 0:01:37]} Ra1 {[%emt 0:00:52]} 39. Kf2 {[%emt 0:02:46]} Rb1 {[%emt 0:00:56]} 40. g4 {[%emt 0:00:32]} Bc5+ {[%emt 0:00:29]} 41. Ke2 {[%emt 0:01:06]} Nd4+ {[%emt 0:00:20]} 42. Nxd4 {[%emt 0:00:24]} Bxd4 {[%emt 0:00:12]} 43. Be1 {[%emt 0:01:58]} Rb2+ {[%emt 0:00:41]} 44. Kf3 {[%emt 0:00:38]} Rh2 {[%emt 0:00:45]} 45. Bg3 {[%emt 0:02:06]} Rd2 {[%emt 0:00:33]} 46. Bc4 {[%emt 0:00:18]} Kf6 {[%emt 0:00:29]} 47. Be1 {[%emt 0:00:20]} Rh2 {[%emt 0:00:20]} 48. Bg3 {[%emt 0:00:08]} Rh1 {[%emt 0:00:17]} 49. Kg2 {[%emt 0:01:47]} Rb1 {[%emt 0:00:13]} 50. Bg8 {[%emt 0:00:39]} Bc3 {[%emt 0:01:03]} 51. Bc4 {[%emt 0:01:50]} Bd2 {[%emt 0:00:34]} 52. Kf3 {[%emt 0:02:02]} g5 {[%emt 0:00:18]} 53. d4 {[%emt 0:02:14]} exd4 {[%emt 0:00:51]} 54. e5+ {[%emt 0:00:02]} Ke7 {[%emt 0:00:10]} 55. h5 {[%emt 0:02:49]} Be1 {[%emt 0:00:21]} 56. Bh2 {[%emt 0:00:17]} Rc1 {[%emt 0:00:38]} 57. Bd3 {[%emt 0:00:13]} c5 {[%emt 0:00:30]} 58. Bf5 {[%emt 0:01:07]} c4 {[%emt 0:00:25]} 59. Ke4 {[%emt 0:00:07]} d3 {[%emt 0:00:27]} 60. Bg1 {[%emt 0:00:23]} Bb4 {[%emt 0:00:20]} 0-1

[Event "LAT-chW 2020"]
[Site "Riga"]
[Date "2020.08.29"]
[Round "7.2"]
[White "Golsta, Madara"]
[Black "Kuznecova, Marija"]
[Result "0-1"]
[ECO "B23"]
[WhiteElo "1889"]
[BlackElo "1523"]
[Annotator "NA"]
[PlyCount "86"]
[EventDate "2020.08.24"]
[EventType "swiss"]
[EventCountry "LAT"]
[SourceTitle "playchess.com"]
[Source "ChessBase"]
[SourceQuality "1"]
[TimeControl "5400+30"]

1. e4 {[%emt 0:00:00]} c5 {[%emt 0:00:00]} 2. Nc3 {[%emt 0:00:00]} d6 {[%emt 0:00:04]} 3. d4 {[%emt 0:00:00]} cxd4 {[%emt 0:00:38]} 4. Qxd4 {[%emt 0:00:05]} Nc6 {[%emt 0:01:09]} 5. Qd2 {[%emt 0:00:06]} Nf6 {[%emt 0:00:54]} 6. b3 {[%emt 0:00:10]} g6 {[%emt 0:03:01]} 7. Bb2 {[%emt 0:00:11]} Bg7 {[%emt 0:00:47]} 8. O-O-O {[%emt 0:00:12]} O-O {[%emt 0:02:19]} 9. f3 {[%emt 0:00:15]} a5 {[%emt 0:02:42]} 10. a4 {[%emt 0:00:39]} Be6 {[%emt 0:03:16]} 11. g4 {[%emt 0:04:30]} Rc8 {[%emt 0:05:46]} 12. Kb1 {[%emt 0:02:35]} Nb4 {[%emt 0:02:31]} 13. Nge2 {[%emt 0:05:23]} Nd7 {[%emt 0:04:01]} 14. Nd4 {[%emt 0:01:21]} Qb6 {[%emt 0:04:38]} 15. Ncb5 {[%emt 0:18:54]} Ne5 {[%emt 0:08:40]} 16. Be2 {[%emt 0:07:43]} Nxc2 {[%emt 0:13:37]} 17. Nxc2 {[%emt 0:03:02]} Bxb3 {[%emt 0:00:22]} 18. Rc1 {[%emt 0:03:01]} Nxf3 {[%emt 0:04:30]} 19. Bxf3 {[%emt 0:04:05]} Bxb2 {[%emt 0:00:42]} 20. Kxb2 {[%emt 0:06:28]} Bxa4 {[%emt 0:00:35]} 21. Nca3 {[%emt 0:02:47]} Bxb5 {[%emt 0:00:31]} 22. Ka1 {[%emt 0:02:27]} Ba6 {[%emt 0:05:54]} 23. h4 {[%emt 0:06:29]} Qb3 {[%emt 0:02:12]} 24. Qa2 {[%emt 0:09:44]} Qxf3 {[%emt 0:01:02]} 25. Rce1 {[%emt 0:00:08]} Qc3+ {[%emt 0:00:53]} 26. Qb2 {[%emt 0:00:19]} b5 {[%emt 0:01:26]} 27. h5 {[%emt 0:02:02]} b4 {[%emt 0:01:07]} 28. Nb1 {[%emt 0:00:33]} Qxb2+ {[%emt 0:00:10]} 29. Kxb2 {[%emt 0:00:05]} Bd3 {[%emt 0:00:40]} 30. Rh3 {[%emt 0:01:57]} Bxb1 {[%emt 0:00:33]} 31. Rxb1 {[%emt 0:00:05]} Rc4 {[%emt 0:00:32]} 32. g5 {[%emt 0:01:28]} Rxe4 {[%emt 0:00:22]} 33. Rbh1 {[%emt 0:00:11]} Kg7 {[%emt 0:01:32]} 34. hxg6 {[%emt 0:00:38]} Kxg6 {[%emt 0:00:07]} 35. Rxh7 {[%emt 0:02:35]} Kxg5 {[%emt 0:00:45]} 36. R1h5+ {[%emt 0:03:20]} Kf4 {[%emt 0:00:33]} 37. Rxa5 {[%emt 0:00:17]} f5 {[%emt 0:01:09]} 38. Ra1 {[%emt 0:01:00]} Ke3 {[%emt 0:01:26]} 39. Re1+ {[%emt 0:01:01]} Kd2 {[%emt 0:00:31]} 40. Rc1 {[%emt 0:00:17]} f4 {[%emt 0:01:15]} 41. Rhh1 {[%emt 0:01:06]} Re2 {[%emt 0:01:23]} 42. Rh3 {[%emt 0:00:38]} f3 {[%emt 0:00:47]} 43. Kb1 {[%emt 0:01:52]} Re1 {[%emt 0:01:56]} 0-1

[Event "LAT-chW 2020"]
[Site "Riga"]
[Date "2020.08.29"]
[Round "7.3"]
[White "Krumina, Linda"]
[Black "Kazmerika, Anna"]
[Result "1-0"]
[ECO "D55"]
[WhiteElo "2065"]
[BlackElo "1615"]
[Annotator "ChessBase"]
[PlyCount "67"]
[EventDate "2020.08.24"]
[EventType "swiss"]
[EventCountry "LAT"]
[SourceTitle "playchess.com"]
[Source "ChessBase"]
[SourceQuality "1"]
[TimeControl "5400+30"]

1. Nf3 {[%emt 0:00:00]} d5 {[%emt 0:00:00]} 2. d4 {[%emt 0:00:00]} Nf6 {[%emt 0:00:00]} 3. c4 {[%emt 0:00:58]} e6 {[%emt 0:00:44]} 4. Nc3 {[%emt 0:00:21]} b6 {[%emt 0:02:07]} 5. cxd5 {[%emt 0:00:14]} exd5 {[%emt 0:01:28]} 6. Bg5 {[%emt 0:00:28]} Be7 {[%emt 0:01:01]} 7. e3 {[%emt 0:00:28]} O-O {[%emt 0:00:15]} 8. Bd3 {[%emt 0:01:51]} Be6 {[%emt 0:01:58]} 9. O-O {[%emt 0:00:44]} c5 {[%emt 0:00:54]} 10. Rc1 {[%emt 0:01:04]} c4 {[%emt 0:08:24]} 11. Bb1 {[%emt 0:01:41]} Nc6 {[%emt 0:24:13]} 12. Ne5 {[%emt 0:03:46]} Rc8 {[%emt 0:02:46]} 13. f4 {[%emt 0:02:01]} a6 {[%emt 0:19:43]} 14. f5 {[%emt 0:13:15]} Bd7 {[%emt 0:00:12]} 15. Qf3 {[%emt 0:03:39]} Be8 {[%emt 0:15:06]} 16. Bxf6 {[%emt 0:01:56]} Bxf6 {[%emt 0:00:06]} 17. Ng4 {[%emt 0:00:06]} Ne7 {[%emt 0:10:41]} 18. Nxf6+ {[%emt 0:00:48]} gxf6 {[%emt 0:00:05]} 19. Qh5 {[%emt 0:01:04]} Kh8 {[%emt 0:08:34]} 20. Qh6 {[%emt 0:00:25]} Rg8 {[%emt 0:00:37]} 21. Qxf6+ {[%emt 0:00:36]} Rg7 {[%emt 0:00:40]} 22. Qh4 {[%emt 0:01:02]} f6 {[%emt 0:00:20]} 23. Qxf6 {[%emt 0:00:13]} Rc6 {[%emt 0:00:14]} 24. Qe5 {[%emt 0:00:27]} Ng8 {[%emt 0:01:01]} 25. Nxd5 {[%emt 0:01:24]} Nf6 {[%emt 0:00:35]} 26. Nxf6 {[%emt 0:00:11]} Rxf6 {[%emt 0:00:08]} 27. Be4 {[%emt 0:03:32]} b5 {[%emt 0:00:45]} 28. Bd5 {[%emt 0:05:08]} Bf7 {[%emt 0:00:37]} 29. Be6 {[%emt 0:02:36]} Bxe6 {[%emt 0:00:39]} 30. fxe6 {[%emt 0:00:10]} Rfg6 {[%emt 0:00:21]} 31. g3 {[%emt 0:01:03]} Kg8 {[%emt 0:00:19]} 32. d5 {[%emt 0:00:51]} Rg5 {[%emt 0:00:41]} 33. Rf5 {[%emt 0:00:44]} R5g6 {[%emt 0:00:37]} 34. Rcf1 {[%emt 0:00:27]} 1-0

[Event "LAT-chW 2020"]
[Site "Riga"]
[Date "2020.08.29"]
[Round "7.4"]
[White "Ter-Avetisjana, Agnesa Stepania"]
[Black "Osobskaja, Zinaida"]
[Result "1-0"]
[ECO "C05"]
[WhiteElo "1683"]
[BlackElo "1682"]
[Annotator "NA"]
[PlyCount "73"]
[EventDate "2020.08.24"]
[EventType "swiss"]
[EventCountry "LAT"]
[SourceTitle "playchess.com"]
[Source "ChessBase"]
[SourceQuality "1"]
[TimeControl "5400+30"]

1. e4 {[%emt 0:00:49]} e6 {[%emt 0:00:17]} 2. d4 d5 {[%emt 0:00:00]} 3. Nd2 {[%emt 0:00:01]} c5 {[%emt 0:00:27]} 4. c3 {[%emt 0:03:49]} Nc6 {[%emt 0:03:20]} 5. Ngf3 {[%emt 0:04:43]} Nf6 {[%emt 0:03:04]} 6. e5 {[%emt 0:01:47]} Nd7 {[%emt 0:01:31]} 7. Bb5 {[%emt 0:09:49]} a6 {[%emt 0:00:27]} 8. Bxc6 {[%emt 0:00:10]} bxc6 {[%emt 0:00:14]} 9. O-O {[%emt 0:00:01]} Be7 {[%emt 0:00:16]} 10. b3 {[%emt 0:03:43]} O-O {[%emt 0:00:35]} 11. Bb2 {[%emt 0:00:52]} a5 {[%emt 0:00:43]} 12. Rc1 {[%emt 0:04:10]} f5 {[%emt 0:01:14]} 13. exf6 {[%emt 0:01:59]} Nxf6 {[%emt 0:01:24]} 14. Re1 {[%emt 0:04:01]} Bd6 {[%emt 0:01:24]} 15. Ne5 {[%emt 0:04:20]} Qb6 {[%emt 0:09:05]} 16. Ba3 {[%emt 0:24:04]} a4 {[%emt 0:02:42]} 17. Rb1 {[%emt 0:05:17]} Bb7 {[%emt 0:04:40]} 18. Nd3 {[%emt 0:10:09]} Qc7 {[%emt 0:02:31]} 19. Bxc5 {[%emt 0:04:25]} Bxh2+ {[%emt 0:00:36]} 20. Kh1 {[%emt 0:00:12]} Rfe8 {[%emt 0:00:15]} 21. Nf3 {[%emt 0:05:09]} Bd6 {[%emt 0:00:39]} 22. Bxd6 {[%emt 0:02:08]} Qxd6 {[%emt 0:00:25]} 23. Nc5 {[%emt 0:00:01]} Bc8 {[%emt 0:00:43]} 24. Ne5 {[%emt 0:03:17]} axb3 {[%emt 0:00:30]} 25. Qxb3 {[%emt 0:01:23]} Nd7 {[%emt 0:01:54]} 26. Ncxd7 {[%emt 0:03:56]} Bxd7 {[%emt 0:00:44]} 27. Qb7 {[%emt 0:00:17]} Rad8 {[%emt 0:00:41]} 28. Rb6 {[%emt 0:00:38]} Re7 {[%emt 0:02:00]} 29. Nxd7 {[%emt 0:00:56]} Rdxd7 {[%emt 0:01:04]} 30. Qxc6 {[%emt 0:00:26]} Qf4 {[%emt 0:00:45]} 31. Qc8+ {[%emt 0:00:55]} Kf7 {[%emt 0:00:36]} 32. Rbxe6 {[%emt 0:01:04]} Qxf2 {[%emt 0:02:14]} 33. Qa6 {[%emt 0:01:26]} Qh4+ {[%emt 0:02:53]} 34. Kg1 {[%emt 0:00:09]} g6 {[%emt 0:01:13]} 35. Qe2 {[%emt 0:00:38]} h5 {[%emt 0:02:57]} 36. Qe5 {[%emt 0:00:39]} Kf8 {[%emt 0:08:23]} 37. Qh8+ {[%emt 0:00:10]} 1-0

[Event "LAT-chW 2020"]
[Site "Riga"]
[Date "2020.08.29"]
[Round "8.1"]
[White "Rogule, Laura"]
[Black "Kuznecova, Marija"]
[Result "1-0"]
[ECO "D30"]
[WhiteElo "2297"]
[BlackElo "1523"]
[Annotator "ChessBase"]
[PlyCount "63"]
[EventDate "2020.08.24"]
[EventType "swiss"]
[EventCountry "LAT"]
[SourceTitle "playchess.com"]
[Source "ChessBase"]
[SourceQuality "1"]
[TimeControl "5400+30"]

1. d4 {[%emt 0:00:00]} d5 {[%emt 0:00:00]} 2. Nf3 {[%emt 0:00:00]} Nf6 {[%emt 0:00:13]} 3. c4 {[%emt 0:00:34]} e6 {[%emt 0:00:54]} 4. g3 {[%emt 0:02:45]} Be7 {[%emt 0:02:43]} 5. Bg2 {[%emt 0:00:31]} c5 {[%emt 0:01:54]} 6. O-O {[%emt 0:13:33]} O-O {[%emt 0:02:39]} 7. cxd5 {[%emt 0:10:36]} exd5 {[%emt 0:00:49]} 8. dxc5 {[%emt 0:03:58]} Bxc5 {[%emt 0:01:43]} 9. Nbd2 {[%emt 0:05:14]} Nc6 {[%emt 0:04:27]} 10. Nb3 {[%emt 0:03:55]} Bd6 {[%emt 0:04:36]} 11. Nbd4 {[%emt 0:06:45]} Be6 {[%emt 0:04:10]} 12. b3 {[%emt 0:04:29]} Qe7 {[%emt 0:09:59]} 13. Bb2 {[%emt 0:02:08]} Ne4 {[%emt 0:03:18]} 14. Rc1 {[%emt 0:07:00]} Rac8 {[%emt 0:04:36]} 15. Qd3 {[%emt 0:03:48]} Nb4 {[%emt 0:05:47]} 16. Qb1 {[%emt 0:00:21]} Bc5 {[%emt 0:06:49]} 17. a3 {[%emt 0:06:19]} Nc6 {[%emt 0:00:43]} 18. Nxc6 {[%emt 0:04:34]} bxc6 {[%emt 0:00:51]} 19. b4 {[%emt 0:02:17]} Bb6 {[%emt 0:01:26]} 20. Qd3 {[%emt 0:05:16]} f6 {[%emt 0:07:38]} 21. Nd4 {[%emt 0:01:02]} Bd7 {[%emt 0:01:24]} 22. Nxc6 {[%emt 0:08:01]} Bxc6 {[%emt 0:02:41]} 23. Rxc6 {[%emt 0:00:07]} Rxc6 {[%emt 0:01:25]} 24. Qxd5+ {[%emt 0:00:02]} Re6 {[%emt 0:00:26]} 25. Bxe4 {[%emt 0:00:11]} Kh8 {[%emt 0:02:10]} 26. Bd3 {[%emt 0:00:16]} Rd8 {[%emt 0:08:09]} 27. Qf5 {[%emt 0:03:14]} g6 {[%emt 0:01:28]} 28. Qf3 {[%emt 0:01:53]} Kg7 {[%emt 0:01:12]} 29. h4 {[%emt 0:00:55]} Rxe2 {[%emt 0:02:01]} 30. Bxe2 {[%emt 0:01:53]} Rd2 {[%emt 0:00:15]} 31. Bc3 {[%emt 0:00:40]} Rxe2 {[%emt 0:01:48]} 32. Bxf6+ {[%emt 0:00:06]} 1-0

[Event "LAT-chW 2020"]
[Site "Riga"]
[Date "2020.08.29"]
[Round "8.2"]
[White "Gorozhankina, Julia"]
[Black "Golsta, Madara"]
[Result "1/2-1/2"]
[ECO "B31"]
[WhiteElo "2035"]
[BlackElo "1889"]
[Annotator "ChessBase"]
[PlyCount "90"]
[EventDate "2020.08.24"]
[EventType "swiss"]
[EventCountry "LAT"]
[SourceTitle "playchess.com"]
[Source "ChessBase"]
[SourceQuality "1"]
[TimeControl "5400+30"]

1. e4 {[%emt 0:00:00]} c5 {[%emt 0:00:00]} 2. Nf3 {[%emt 0:00:00]} Nc6 {[%emt 0:00:04]} 3. Bb5 {[%emt 0:03:21]} g6 {[%emt 0:00:11]} 4. O-O {[%emt 0:00:08]} Bg7 {[%emt 0:00:16]} 5. c3 {[%emt 0:00:11]} Nf6 {[%emt 0:00:22]} 6. Re1 {[%emt 0:00:08]} Qc7 {[%emt 0:06:25]} 7. h3 {[%emt 0:01:31]} O-O {[%emt 0:00:36]} 8. a4 {[%emt 0:11:00]} a6 {[%emt 0:06:46]} 9. Bf1 {[%emt 0:01:36]} b6 {[%emt 0:00:23]} 10. Na3 {[%emt 0:03:49]} Bb7 {[%emt 0:00:50]} 11. d3 {[%emt 0:03:20]} Rac8 {[%emt 0:03:39]} 12. Bg5 {[%emt 0:01:48]} Rfd8 {[%emt 0:09:11]} 13. Rb1 {[%emt 0:09:37]} e5 {[%emt 0:08:16]} 14. c4 {[%emt 0:13:19]} d6 {[%emt 0:01:01]} 15. Qd2 {[%emt 0:07:02]} Rf8 {[%emt 0:03:46]} 16. Nh2 {[%emt 0:09:15]} Ne8 {[%emt 0:06:23]} 17. Bh6 {[%emt 0:05:07]} f5 {[%emt 0:02:06]} 18. Bxg7 {[%emt 0:00:36]} Qxg7 {[%emt 0:00:20]} 19. Nc2 {[%emt 0:01:00]} a5 {[%emt 0:02:22]} 20. Be2 {[%emt 0:03:23]} Nf6 {[%emt 0:00:54]} 21. Bf3 {[%emt 0:03:12]} f4 {[%emt 0:04:11]} 22. g4 {[%emt 0:04:00]} g5 {[%emt 0:07:25]} 23. Bg2 {[%emt 0:03:06]} h5 {[%emt 0:00:47]} 24. f3 {[%emt 0:01:53]} hxg4 {[%emt 0:01:33]} 25. hxg4 {[%emt 0:00:05]} Qh6 {[%emt 0:00:44]} 26. Nf1 {[%emt 0:02:17]} Rc7 {[%emt 0:12:00]} 27. Kf2 {[%emt 0:03:21]} Bc8 {[%emt 0:00:11]} 28. Re2 {[%emt 0:03:18]} Qh4+ {[%emt 0:00:38]} 29. Kg1 {[%emt 0:00:04]} Rh7 {[%emt 0:01:15]} 30. Qe1 {[%emt 0:00:21]} Qh6 {[%emt 0:00:29]} 31. Nd2 {[%emt 0:01:18]} Kg7 {[%emt 0:10:09]} 32. Rf2 {[%emt 0:00:53]} Rfh8 {[%emt 0:03:50]} 33. Kf1 {[%emt 0:00:27]} Kf8 {[%emt 0:02:40]} 34. Ke2 {[%emt 0:02:07]} Ke8 {[%emt 0:00:20]} 35. Qg1 {[%emt 0:00:20]} Qg6 {[%emt 0:00:33]} 36. Rbf1 {[%emt 0:02:01]} Nd7 {[%emt 0:00:52]} 37. Kd1 {[%emt 0:00:23]} Ndb8 {[%emt 0:00:07]} 38. Kc1 {[%emt 0:00:55]} Na6 {[%emt 0:00:07]} 39. Nb1 {[%emt 0:00:16]} Nab4 {[%emt 0:00:10]} 40. Nxb4 {[%emt 0:00:11]} Nxb4 {[%emt 0:01:39]} 41. Rd2 {[%emt 0:00:56]} Rh2 {[%emt 0:00:59]} 42. Nc3 {[%emt 0:00:30]} Bd7 {[%emt 0:00:32]} 43. b3 {[%emt 0:00:12]} Kd8 {[%emt 0:00:19]} 44. Na2 {[%emt 0:01:29]} Nxa2+ {[%emt 0:01:06]} 45. Rxa2 {[%emt 0:00:04]} Kc7 {[%emt 0:00:15]} 1/2-1/2

[Event "LAT-chW 2020"]
[Site "Riga"]
[Date "2020.08.29"]
[Round "8.3"]
[White "Petrovska, Arina"]
[Black "Krumina, Linda"]
[Result "0-1"]
[ECO "D53"]
[WhiteElo "1637"]
[BlackElo "2065"]
[Annotator "ChessBase"]
[PlyCount "134"]
[EventDate "2020.08.24"]
[EventType "swiss"]
[EventCountry "LAT"]
[SourceTitle "playchess.com"]
[Source "ChessBase"]
[SourceQuality "1"]
[TimeControl "5400+30"]

1. d4 {[%emt 0:00:00]} d5 {[%emt 0:00:00]} 2. c4 {[%emt 0:00:00]} e6 {[%emt 0:00:07]} 3. Nc3 {[%emt 0:00:00]} Nf6 {[%emt 0:00:10]} 4. Bg5 {[%emt 0:00:00]} Be7 {[%emt 0:00:17]} 5. e3 {[%emt 0:00:00]} c6 {[%emt 0:00:32]} 6. Nf3 {[%emt 0:00:07]} Nbd7 {[%emt 0:00:14]} 7. Bd3 {[%emt 0:00:07]} dxc4 {[%emt 0:00:20]} 8. Bxc4 {[%emt 0:00:03]} b5 {[%emt 0:00:12]} 9. Bd3 {[%emt 0:00:41]} a6 {[%emt 0:00:25]} 10. O-O {[%emt 0:00:10]} Bb7 {[%emt 0:02:10]} 11. Bxf6 {[%emt 0:03:00]} Nxf6 {[%emt 0:02:23]} 12. Ne4 {[%emt 0:00:30]} Nxe4 {[%emt 0:07:17]} 13. Bxe4 {[%emt 0:00:03]} f5 {[%emt 0:01:36]} 14. Bc2 {[%emt 0:00:48]} O-O {[%emt 0:02:23]} 15. Ne5 {[%emt 0:02:30]} c5 {[%emt 0:02:35]} 16. dxc5 {[%emt 0:01:03]} Bd5 {[%emt 0:04:59]} 17. b4 {[%emt 0:14:38]} Bf6 {[%emt 0:04:24]} 18. f4 {[%emt 0:00:07]} Bxe5 {[%emt 0:11:10]} 19. fxe5 {[%emt 0:00:03]} Qg5 {[%emt 0:00:06]} 20. Qe2 {[%emt 0:01:26]} Rad8 {[%emt 0:02:59]} 21. Bb3 {[%emt 0:02:34]} f4 {[%emt 0:03:21]} 22. Bxd5 {[%emt 0:03:04]} Rxd5 {[%emt 0:00:05]} 23. exf4 {[%emt 0:00:58]} Rxf4 {[%emt 0:00:37]} 24. Rxf4 {[%emt 0:00:53]} Qxf4 {[%emt 0:00:01]} 25. Rf1 {[%emt 0:17:36]} Qxb4 {[%emt 0:03:41]} 26. Qf3 {[%emt 0:03:48]} Qxc5+ {[%emt 0:00:16]} 27. Kh1 {[%emt 0:00:20]} Qe7 {[%emt 0:03:13]} 28. Rc1 {[%emt 0:04:38]} Qd8 {[%emt 0:04:55]} 29. Rf1 {[%emt 0:00:31]} Qe8 {[%emt 0:10:36]} 30. Qc3 {[%emt 0:02:41]} h6 {[%emt 0:03:08]} 31. h3 {[%emt 0:02:57]} Kh7 {[%emt 0:09:11]} 32. Qc2+ {[%emt 0:01:50]} Qg6 {[%emt 0:00:25]} 33. Qc3 {[%emt 0:03:03]} Qd3 {[%emt 0:07:57]} 34. Rf3 {[%emt 0:00:07]} Qxc3 {[%emt 0:00:12]} 35. Rxc3 {[%emt 0:00:08]} Rxe5 {[%emt 0:00:01]} 36. Ra3 {[%emt 0:00:10]} Kg6 {[%emt 0:00:58]} 37. Rxa6 {[%emt 0:00:16]} Re4 {[%emt 0:00:58]} 38. a3 {[%emt 0:01:31]} Kf6 {[%emt 0:01:20]} 39. Rb6 {[%emt 0:00:17]} Ra4 {[%emt 0:02:06]} 40. Rxb5 {[%emt 0:00:18]} Rxa3 {[%emt 0:00:01]} 41. Rb8 {[%emt 0:00:28]} h5 {[%emt 0:03:19]} 42. Kg1 {[%emt 0:00:20]} Ra2 {[%emt 0:00:19]} 43. Rf8+ {[%emt 0:00:24]} Kg6 {[%emt 0:00:59]} 44. Kf1 {[%emt 0:00:42]} e5 {[%emt 0:03:16]} 45. Kg1 {[%emt 0:02:28]} h4 {[%emt 0:01:34]} 46. Kf1 {[%emt 0:00:45]} Kg5 {[%emt 0:00:16]} 47. Rf7 {[%emt 0:01:20]} g6 {[%emt 0:00:16]} 48. Rf8 {[%emt 0:00:51]} e4 {[%emt 0:00:29]} 49. Rf7 {[%emt 0:00:45]} e3 {[%emt 0:04:05]} 50. Rf8 {[%emt 0:01:39]} Ra1+ {[%emt 0:00:13]} 51. Ke2 {[%emt 0:00:22]} Rg1 {[%emt 0:00:09]} 52. Kxe3 {[%emt 0:01:56]} Rxg2 {[%emt 0:00:06]} 53. Rf3 {[%emt 0:04:49]} Rb2 {[%emt 0:01:34]} 54. Ke4 {[%emt 0:00:36]} Rb4+ {[%emt 0:00:31]} 55. Ke5 {[%emt 0:00:20]} Rb1 {[%emt 0:00:44]} 56. Rf2 {[%emt 0:00:53]} Rb3 {[%emt 0:00:27]} 57. Rg2+ {[%emt 0:00:41]} Rg3 {[%emt 0:00:38]} 58. Rh2 {[%emt 0:00:04]} Re3+ {[%emt 0:00:22]} 59. Kd4 {[%emt 0:00:03]} Kf4 {[%emt 0:01:16]} 60. Rf2+ {[%emt 0:00:49]} Rf3 {[%emt 0:00:11]} 61. Rh2 {[%emt 0:00:02]} Kg3 {[%emt 0:00:22]} 62. Ra2 {[%emt 0:01:32]} Kxh3 {[%emt 0:00:10]} 63. Ke4 {[%emt 0:00:15]} Rg3 {[%emt 0:01:01]} 64. Kf4 {[%emt 0:00:41]} g5+ {[%emt 0:00:06]} 65. Kf5 {[%emt 0:00:37]} g4 {[%emt 0:00:59]} 66. Kg5 {[%emt 0:00:37]} Rc3 {[%emt 0:00:47]} 67. Rd2 {[%emt 0:01:20]} g3 {[%emt 0:00:11]} 0-1

[Event "LAT-chW 2020"]
[Site "Riga"]
[Date "2020.08.29"]
[Round "8.4"]
[White "Ter-Avetisjana, Agnesa Stepania"]
[Black "Golsta, Ramona"]
[Result "0-1"]
[ECO "B22"]
[WhiteElo "1683"]
[BlackElo "1708"]
[Annotator "NA"]
[PlyCount "66"]
[EventDate "2020.08.24"]
[EventType "swiss"]
[EventCountry "LAT"]
[SourceTitle "playchess.com"]
[Source "ChessBase"]
[SourceQuality "1"]
[TimeControl "5400+30"]

1. e4 {[%emt 0:00:00]} c5 {[%emt 0:00:00]} 2. Nf3 {[%emt 0:00:00]} g6 {[%emt 0:00:00]} 3. c3 {[%emt 0:00:30]} Bg7 {[%emt 0:00:55]} 4. d4 {[%emt 0:00:25]} cxd4 {[%emt 0:00:09]} 5. cxd4 {[%emt 0:00:05]} d6 {[%emt 0:02:04]} 6. h3 {[%emt 0:02:12]} Nf6 {[%emt 0:00:33]} 7. Nc3 {[%emt 0:00:29]} O-O {[%emt 0:00:21]} 8. Bc4 {[%emt 0:03:09]} a6 {[%emt 0:00:57]} 9. a4 {[%emt 0:02:14]} Bd7 {[%emt 0:02:33]} 10. O-O {[%emt 0:00:32]} Nc6 {[%emt 0:01:26]} 11. Re1 {[%emt 0:04:37]} Rc8 {[%emt 0:03:59]} 12. e5 {[%emt 0:06:08]} Ne8 {[%emt 0:02:36]} 13. Bxf7+ {[%emt 0:06:25]} Rxf7 {[%emt 0:01:54]} 14. Ng5 {[%emt 0:16:50]} dxe5 {[%emt 0:06:38]} 15. Nxf7 {[%emt 0:01:02]} Kxf7 {[%emt 0:00:19]} 16. dxe5 {[%emt 0:01:35]} Be6 {[%emt 0:06:49]} 17. Bf4 {[%emt 0:07:53]} Nc7 {[%emt 0:02:13]} 18. Ne4 {[%emt 0:06:33]} Kg8 {[%emt 0:03:00]} 19. Nc5 {[%emt 0:02:28]} Qf8 {[%emt 0:03:49]} 20. Nxe6 {[%emt 0:05:22]} Nxe6 {[%emt 0:00:05]} 21. Bg3 {[%emt 0:00:08]} Qf5 {[%emt 0:02:09]} 22. Rc1 {[%emt 0:04:54]} Rf8 {[%emt 0:02:15]} 23. f3 {[%emt 0:02:31]} Nf4 {[%emt 0:08:05]} 24. Qb3+ {[%emt 0:04:33]} Kh8 {[%emt 0:00:27]} 25. Qxb7 {[%emt 0:01:38]} Nxe5 {[%emt 0:01:08]} 26. Bxf4 {[%emt 0:03:48]} Qxf4 {[%emt 0:00:56]} 27. Qe4 {[%emt 0:00:11]} Qg3 {[%emt 0:03:28]} 28. Rf1 {[%emt 0:02:08]} Bh6 {[%emt 0:02:29]} 29. Rc3 {[%emt 0:04:35]} Bf4 {[%emt 0:00:55]} 30. Re1 {[%emt 0:01:08]} Qh2+ {[%emt 0:00:55]} 31. Kf1 {[%emt 0:00:14]} Bg3 {[%emt 0:00:46]} 32. Ree3 {[%emt 0:00:49]} Qh1+ {[%emt 0:00:10]} 33. Ke2 {[%emt 0:00:03]} Qe1# {[%emt 0:00:09]} 0-1